fUST/lending_fUST_20250406
["ID","MTS","AMOUNT","RATE_DAILY","PERIOD"]
[357188114,1743874238715,-612.74,0.00016986,2]
[357188115,1743874238725,-500.0,0.00016986,2]
[357188116,1743874238735,-482.5,0.00016986,2]
[357188117,1743874238744,-500.0,0.00016986,2]
[357188118,1743874238754,-500.0,0.00016986,2]
[357188119,1743874238763,-500.0,0.00016986,2]
[357188120,1743874238773,-500.0,0.00016986,2]
[357188121,1743874238782,-367.05,0.00016986,2]
[357188122,1743874238792,-500.0,0.00016986,2]
[357188123,1743874238802,-500.0,0.00016986,2]
[357188124,1743874238811,-500.0,0.00016986,2]
[357188125,1743874238821,-327.92135629,0.00016986,2]
[357188126,1743874238830,-500.0,0.00016986,2]
[357188127,1743874238840,-500.0,0.00016986,2]
[357188128,1743874238849,-500.0,0.00016986,2]
[357188129,1743874238858,-583.84,0.00016986,2]
[357188130,1743874238868,-637.9,0.00016986,2]
[357188131,1743874238878,-513.18,0.00016986,2]
[357188132,1743874238887,-500.0,0.00016986,2]
[357188133,1743874238896,-239.15,0.00016986,2]
[357188134,1743874238905,-500.0,0.00017128,2]
[357188135,1743874238914,-500.0,0.00017128,2]
[357188136,1743874238923,-500.0,0.00017128,2]
[357188137,1743874238933,-552.17,0.00017144,2]
[357188138,1743874238942,-499.95000003,0.00017144,2]
[357188139,1743874238952,-500.0,0.0001726,2]
[357188140,1743874238962,-612.74,0.0001726,2]
[357188141,1743874238972,-500.0,0.0001726,2]
[357188142,1743874238981,-500.0,0.0001726,2]
[357188143,1743874238991,-500.0,0.0001726,2]
[357188144,1743874239000,-500.0,0.0001726,2]
[357188145,1743874239010,-500.0,0.0001726,2]
[357188146,1743874239019,-500.0,0.0001726,2]
[357188147,1743874239029,-500.0,0.0001726,2]
[357188148,1743874239038,-500.0,0.0001726,2]
[357188149,1743874239048,-225.64365527,0.0001726,2]
[357188150,1743874239061,-274.35634473,0.0001726,2]
[357188151,1743874239071,-167.21715187,0.0001726,2]
[357188152,1743874241165,-0.00820581,0.0001726,2]
[357188173,1743874243174,-35.05510169,0.0001726,2]
[357188174,1743874243186,-297.71954063,0.0001726,2]
[357188175,1743874243196,-500.0,0.0001726,2]
[357188176,1743874243206,-500.0,0.0001726,2]
[357188177,1743874243216,-1376.6369473,0.000175,4]
[357188212,1743874246127,-500.0,0.00016438,2]
[357188213,1743874246137,-500.0,0.00016712,2]
[357188214,1743874246146,-500.0,0.00016986,2]
[357188215,1743874246156,-500.0,0.0001726,2]
[357188216,1743874246165,-2127.39452143,0.000175,4]
[357188217,1743874246174,-612.74,0.00017534,2]
[357188218,1743874246184,-500.0,0.00017534,2]
[357188219,1743874246194,-500.0,0.00017534,2]
[357188220,1743874246203,-500.0,0.00017534,2]
[357188221,1743874246213,-500.0,0.00017534,2]
[357188222,1743874246222,-500.0,0.00017534,2]
[357188223,1743874246232,-500.0,0.00017534,2]
[357188224,1743874246242,-500.0,0.00017534,2]
[357188225,1743874246252,-500.0,0.00017534,2]
[357188226,1743874246265,-151.0,0.00017694,2]
[357188227,1743874246276,-134.80683597,0.00017711,2]
[357188228,1743874246287,-133.91789603,0.00017711,2]
[357188229,1743874246297,-612.74,0.00017808,2]
[357188230,1743874246307,-500.0,0.00017808,2]
[357188231,1743874246317,-541.8,0.00017808,2]
[357188233,1743874246327,-500.0,0.00017808,2]
[357188234,1743874246336,-500.0,0.00017808,2]
[357188235,1743874246347,-500.0,0.00017808,2]
[357188236,1743874246358,-500.0,0.00017808,2]
[357188237,1743874246367,-500.0,0.00017808,2]
[357188238,1743874246377,-500.0,0.00017808,2]
[357188239,1743874246386,-151.0,0.00017986,2]
[357188240,1743874246396,-612.74,0.00018082,2]
[357188241,1743874246405,-411.8,0.00018082,2]
[357188242,1743874246414,-500.0,0.00018082,2]
[357188243,1743874246423,-500.0,0.00018082,2]
[357188244,1743874246432,-332.02434851,0.00018082,2]
[357188246,1743874320876,-500.0,0.00016438,2]
[357188247,1743874320902,-474.5857,0.00016712,2]
[357188285,1743874411377,-247.5872,0.00016438,2]
[357188287,1743874454970,156.551225,0.0002254,10]
[357188291,1743874522397,203.9437923,0.00023,10]
[357188318,1743874611719,57920.0,0.00023,10]
[357188323,1743874994331,-161.0,0.00016437,2]
[357188324,1743874994356,-12.08082538,0.00016437,2]
[357188330,1743875043965,-199.12728908,0.00016437,2]
[357188332,1743875158122,-189.0,0.00016437,2]
[357188333,1743875158144,-410.86742275,0.00016438,2]
[357188334,1743875158165,-500.0,0.00016438,2]
[357188335,1743875158186,-500.0,0.00016438,2]
[357188336,1743875158207,-500.0,0.00016438,2]
[357188337,1743875158228,-514.23,0.00016438,2]
[357188338,1743875158251,-500.0,0.00016438,2]
[357188339,1743875158273,-500.0,0.00016438,2]
[357188340,1743875158296,-630.86,0.00016438,2]
[357188341,1743875158318,-566.26,0.00016438,2]
[357188342,1743875158339,-500.0,0.00016438,2]
[357188343,1743875158360,-500.0,0.00016438,2]
[357188344,1743875158382,-607.88,0.00016438,2]
[357188345,1743875158404,-500.0,0.00016438,2]
[357188346,1743875158424,-500.0,0.00016438,2]
[357188347,1743875158445,-500.0,0.00016438,2]
[357188348,1743875158466,-500.0,0.00016438,2]
[357188349,1743875158486,-298.01154635,0.00016438,2]
[357188350,1743875158507,-216.58317573,0.00016712,2]
[357188351,1743875158528,-530.71,0.00016712,2]
[357188352,1743875158549,-357.76,0.00016712,2]
[357188353,1743875158570,-219.72,0.00016712,2]
[357188354,1743875158595,-240.7231124,0.00017223,2]
[357188355,1743875158616,-1759.26142677,0.00018254,2]
[357188356,1743875158638,-200.0,0.00018344,2]
[357188357,1743875158660,-500.0,0.00018353,2]
[357188358,1743875158683,-500.0,0.00018353,2]
[357188359,1743875158706,-500.0,0.00018353,2]
[357188360,1743875158729,-500.0,0.00018353,2]
[357188361,1743875158751,-500.0,0.00018353,2]
[357188362,1743875158775,-500.0,0.00018353,2]
[357188363,1743875158796,-500.0,0.00018353,2]
[357188364,1743875158817,-500.0,0.00018354,2]
[357188365,1743875158838,-524.78654095,0.00018354,2]
[357188366,1743875158859,-369.90154394,0.00018354,2]
[357188367,1743875158880,-500.0,0.00018354,2]
[357188368,1743875158901,-500.0,0.00018354,2]
[357188369,1743875158922,-500.0,0.00018354,2]
[357188370,1743875158944,-500.0,0.00018354,2]
[357188371,1743875158966,-500.0,0.00018354,2]
[357188372,1743875158987,-500.0,0.00018354,2]
[357188373,1743875159008,-500.0,0.00018354,2]
[357188374,1743875159030,-500.0,0.00018354,2]
[357188375,1743875159053,-500.0,0.00018354,2]
[357188376,1743875159074,-500.0,0.00018354,2]
[357188377,1743875159097,-500.0,0.00018354,2]
[357188378,1743875159117,-500.0,0.00018354,2]
[357188379,1743875159138,-615.06,0.00018354,2]
[357188380,1743875159160,-500.0,0.00018354,2]
[357188381,1743875159182,-500.0,0.00018354,2]
[357188382,1743875159204,-500.0,0.00018354,2]
[357188383,1743875159226,-500.0,0.00018354,2]
[357188384,1743875159247,-500.0,0.00018354,2]
[357188385,1743875159268,-500.0,0.00018354,2]
[357188386,1743875159289,-500.0,0.00018354,2]
[357188387,1743875159311,-500.0,0.00018354,2]
[357188388,1743875159333,-500.0,0.00018354,2]
[357188389,1743875159354,-500.0,0.00018354,2]
[357188390,1743875159374,-500.0,0.00018354,2]
[357188391,1743875159395,-500.0,0.00018354,2]
[357188392,1743875159417,-500.0,0.00018354,2]
[357188393,1743875159438,-500.0,0.00018354,2]
[357188394,1743875159459,-500.0,0.00018354,2]
[357188395,1743875159481,-500.0,0.00018354,2]
[357188396,1743875159502,-500.0,0.00018354,2]
[357188397,1743875159524,-500.0,0.00018354,2]
[357188398,1743875159546,-500.0,0.00018354,2]
[357188399,1743875159567,-500.0,0.00018354,2]
[357188400,1743875159592,-500.0,0.00018354,2]
[357188401,1743875159613,-500.0,0.00018354,2]
[357188402,1743875159635,-500.0,0.00018354,2]
[357188403,1743875159658,-500.0,0.00018354,2]
[357188404,1743875159682,-500.0,0.00018354,2]
[357188405,1743875159703,-500.0,0.00018354,2]
[357188406,1743875159723,-167.26495432,0.00018354,2]
[357188407,1743875159744,-500.0,0.00018354,2]
[357188408,1743875159767,-500.0,0.00018354,2]
[357188409,1743875159789,-500.0,0.00018354,2]
[357188410,1743875159811,-500.0,0.00018373,2]
[357188411,1743875159831,-500.0,0.00018627,2]
[357188412,1743875159855,-254.64363147,0.00018627,2]
[357188414,1743875242101,-310.01052181,0.00018353,2]
[357188431,1743875432400,-34.44561353,0.00018353,2]
[357188921,1743875440480,-500.0,0.00018353,2]
[357188922,1743875440490,-500.0,0.00018353,2]
[357188923,1743875440500,-500.0,0.00018353,2]
[357188924,1743875440510,-500.0,0.00018353,2]
[357188925,1743875440520,-98.09307682,0.00018353,2]
[357188926,1743875440594,-0.00678304,0.00018353,2]
[357188927,1743875440605,-401.90014014,0.00018353,2]
[357188928,1743875440615,-509.1,0.00018353,2]
[357188929,1743875440624,-500.0,0.00018353,2]
[357188930,1743875440634,-500.0,0.00018353,2]
[357188931,1743875440644,-500.0,0.00018353,2]
[357188932,1743875440653,-500.0,0.00018353,2]
[357188933,1743875440663,-500.0,0.00018353,2]
[357188934,1743875440674,-500.0,0.00018353,2]
[357188935,1743875440684,-500.0,0.00018353,2]
[357188937,1743875440693,-500.0,0.00018353,2]
[357188939,1743875440703,-500.0,0.00018353,2]
[357188941,1743875440714,-538.68,0.00018353,2]
[357188943,1743875440723,-500.0,0.00018353,2]
[357188944,1743875440734,-589.43,0.00018354,2]
[357188945,1743875440746,-200.0,0.00018617,2]
[357188947,1743875440756,-158.57,0.00018627,2]
[357188949,1743875440766,-416.7,0.00018627,2]
[357188951,1743875440776,-500.0,0.00018627,2]
[357188953,1743875440786,-500.0,0.00018627,2]
[357188954,1743875440795,-500.0,0.00018627,2]
[357188955,1743875440805,-330.92,0.00018627,2]
[357188956,1743875440814,-500.0,0.00018627,2]
[357188957,1743875440824,-500.0,0.00018627,2]
[357188958,1743875440835,-500.0,0.00018627,2]
[357188959,1743875440844,-590.46,0.00018627,2]
[357188960,1743875440854,-500.0,0.00018628,2]
[357188961,1743875440863,-160.08636015,0.00018628,2]
[357188962,1743875440875,-339.91363985,0.00018628,2]
[357188963,1743875440885,-500.0,0.00018628,2]
[357188964,1743875440894,-224.47852107,0.00018628,2]
[357188965,1743875440904,-589.43,0.00018628,2]
[357188967,1743875440913,-262.5469477,0.00018662,2]
[357188969,1743875440923,-500.0,0.00018662,2]
[357188971,1743875440932,-500.0,0.00018662,2]
[357188973,1743875440941,-542.03492695,0.00018662,2]
[357188974,1743875440951,-500.0,0.00018662,2]
[357188976,1743875440960,-500.0,0.00018662,2]
[357188977,1743875440969,-412.62947819,0.00018662,2]
[357188979,1743875440979,-500.0,0.00018662,2]
[357188981,1743875440988,-500.0,0.00018662,2]
[357188983,1743875440998,-500.0,0.00018662,2]
[357188985,1743875441007,-500.0,0.00018662,2]
[357188987,1743875441017,-326.29459608,0.00018662,2]
[357188989,1743875441027,-336.23318683,0.00018662,2]
[357188991,1743875441039,-163.76681317,0.00018662,2]
[357188993,1743875441049,-500.0,0.00018662,2]
[357188995,1743875441059,-465.55438647,0.00018662,2]
[357188997,1743875441069,-294.37100495,0.00018663,2]
[357188999,1743875441079,-186.5124295,0.00018801,2]
[357189001,1743875441088,-500.0,0.00018901,2]
[357189003,1743875441098,-383.12,0.00018901,2]
[357189005,1743875441107,-500.0,0.00018901,2]
[357189007,1743875441117,-51.86632783,0.00018901,2]
[357189064,1743875443348,-448.13367217,0.00018901,2]
[357189065,1743875443358,-423.77702642,0.00018901,2]
[357189066,1743875443368,-589.43,0.00018902,2]
[357189067,1743875443378,-267.4,0.00018936,2]
[357189068,1743875443388,-500.0,0.00018936,2]
[357189069,1743875443398,-500.0,0.00018936,2]
[357189070,1743875443407,-500.0,0.00018936,2]
[357189071,1743875443417,-500.0,0.00018936,2]
[357189072,1743875443426,-1539.35374845,0.00019075,2]
[357189073,1743875443435,-500.0,0.00019175,2]
[357189074,1743875443445,-500.0,0.00019175,2]
[357189075,1743875443454,-500.0,0.00019175,2]
[357189077,1743875443464,-589.43,0.00019176,2]
[357189079,1743875443473,-500.0,0.0001921,2]
[357189080,1743875443483,-441.92,0.0001921,2]
[357189081,1743875443492,-500.0,0.0001921,2]
[357189082,1743875443502,-500.0,0.0001921,2]
[357189084,1743875443511,-500.0,0.0001923,2]
[357189086,1743875443521,-500.0,0.00019449,2]
[357189087,1743875443530,-500.0,0.00019449,2]
[357189088,1743875443540,-500.0,0.00019449,2]
[357189089,1743875443549,-589.43,0.0001945,2]
[357189090,1743875443559,-500.0,0.00019484,2]
[357189091,1743875443569,-500.0,0.00019484,2]
[357189092,1743875443578,-500.0,0.00019484,2]
[357189093,1743875443588,-571.21287362,0.00019723,2]
[357189094,1743875443598,-500.0,0.00019723,2]
[357189095,1743875443608,-500.0,0.00019723,2]
[357189096,1743875443617,-589.43,0.00019724,2]
[357189097,1743875443627,-500.0,0.00019758,2]
[357189098,1743875443637,-500.0,0.00019758,2]
[357189099,1743875443647,-500.0,0.00019758,2]
[357189100,1743875443657,-2680.81335639,0.000199,2]
[357189101,1743875443666,-207.4,0.00019986,2]
[357189102,1743875443678,-500.0,0.00019997,2]
[357189103,1743875443688,-500.0,0.00019997,2]
[357189104,1743875443697,-589.43,0.00019998,2]
[357189105,1743875443707,-721.64904499,0.0002,2]
[357189106,1743875443718,-500.0,0.00020032,2]
[357189107,1743875443727,-500.0,0.00020032,2]
[357189108,1743875443736,-500.0,0.00020032,2]
[357189109,1743875443747,-160.0,0.00020185,2]
[357189110,1743875443757,-500.0,0.00020271,2]
[357189111,1743875443766,-500.0,0.00020271,2]
[357189112,1743875443775,-589.43,0.00020272,2]
[357189113,1743875443785,-500.0,0.00020306,2]
[357189114,1743875443794,-500.0,0.00020306,2]
[357189115,1743875443804,-500.0,0.00020306,2]
[357189117,1743875443813,-306.4478823,0.0002037,2]
[357189119,1743875443823,-500.0,0.00020545,2]
[357189120,1743875443832,-500.0,0.00020545,2]
[357189121,1743875443841,-589.43,0.00020546,2]
[357189122,1743875443851,-419.62,0.0002058,2]
[357189123,1743875443860,-500.0,0.0002058,2]
[357189124,1743875443870,-500.0,0.0002058,2]
[357189125,1743875443879,-2680.81335635,0.0002059,2]
[357189126,1743875443889,-5867.68869065,0.0002079,2]
[357189127,1743875443898,-500.0,0.00020819,2]
[357189128,1743875443908,-500.0,0.00020819,2]
[357189129,1743875443920,-589.43,0.0002082,2]
[357189130,1743875443931,-500.0,0.00020853,2]
[357189131,1743875443941,-500.0,0.00020853,2]
[357189132,1743875443951,-156.551225,0.00020855,3]
[357189133,1743875443961,-500.0,0.00020873,2]
[357189134,1743875443971,-500.0,0.00020873,2]
[357189135,1743875443980,-175.21,0.0002089,3]
[357189136,1743875443990,-525.64,0.0002089,3]
[357189137,1743875443999,-204.09198553,0.00020898,2]
[357189138,1743875444009,-500.0,0.00020898,2]
[357189139,1743875444019,-500.0,0.00020898,2]
[357189140,1743875444028,-477.41723258,0.00020898,2]
[357189141,1743875444042,-22.58276742,0.00020898,2]
[357189142,1743875444052,-469.53033106,0.00020898,2]
[357189143,1743875444778,-30.46966894,0.00020898,2]
[357189144,1743875444788,-500.0,0.00020898,2]
[357189145,1743875444797,-500.0,0.00020898,2]
[357189146,1743875444807,-500.0,0.00020898,2]
[357189147,1743875444816,-28975.86238705,0.000209,2]
[357189150,1743875446387,-500.0,0.00018353,2]
[357189151,1743875446397,-500.0,0.00020898,2]
[357189152,1743875446407,-500.0,0.00020898,2]
[357189153,1743875446417,-500.0,0.00020898,2]
[357189154,1743875446427,-500.0,0.00020898,2]
[357189155,1743875446436,-283.5617702,0.00020898,2]
[357189156,1743875446446,-627.96302219,0.000209,2]
[357189158,1743876175839,167.65,0.00010959,2]
[357189159,1743876186403,838.27,0.00010959,2]
[357189160,1743876354121,-1242.8,0.00017393,2]
[357189161,1743876354148,-300.0,0.00017924,2]
[357189162,1743876354174,-9635.2174796,0.00017925,2]
[357189163,1743876354200,-500.0,0.00018252,2]
[357189164,1743876354228,-500.0,0.00018252,2]
[357189165,1743876354254,-500.0,0.00018252,2]
[357189166,1743876354282,-290.35322652,0.00018252,2]
[357189167,1743876354309,-500.0,0.00018252,2]
[357189168,1743876354335,-500.0,0.00018252,2]
[357189169,1743876354361,-500.0,0.00018252,2]
[357189170,1743876354386,-500.0,0.00018252,2]
[357189171,1743876354411,-500.0,0.00018252,2]
[357189172,1743876354437,-500.0,0.00018252,2]
[357189173,1743876354465,-500.0,0.00018252,2]
[357189174,1743876354491,-500.0,0.00018252,2]
[357189175,1743876354514,-500.0,0.00018252,2]
[357189176,1743876354538,-500.0,0.00018252,2]
[357189177,1743876354567,-500.0,0.00018252,2]
[357189178,1743876354592,-500.0,0.00018252,2]
[357189179,1743876354615,-500.0,0.00018252,2]
[357189180,1743876354638,-1760.66748926,0.00018253,2]
[357189181,1743876354664,-23012.85076471,0.00018253,7]
[357189182,1743876358104,-23632.18727605,0.00018253,2]
[357189183,1743876358129,-51378.32491775,0.00018253,7]
[357189184,1743876358153,-500.0,0.00018352,2]
[357189185,1743876358177,-500.0,0.00018352,2]
[357189186,1743876358202,-499.05667564,0.00018352,2]
[357189187,1743876358226,-500.0,0.00018352,2]
[357189188,1743876358250,-500.0,0.00018352,2]
[357189189,1743876358273,-500.0,0.00018352,2]
[357189190,1743876358298,-500.0,0.00018352,2]
[357189191,1743876358325,-500.0,0.00018352,2]
[357189192,1743876358357,-500.0,0.00018352,2]
[357189193,1743876358381,-500.0,0.00018352,2]
[357189194,1743876358614,-500.0,0.00018352,2]
[357189195,1743876358645,-500.0,0.00018352,2]
[357189196,1743876358667,-500.0,0.00018352,2]
[357189197,1743876358691,-512.39,0.00018352,2]
[357189198,1743876358714,-500.0,0.00018352,2]
[357189199,1743876358736,-500.0,0.00018352,2]
[357189200,1743876358758,-500.0,0.00018352,2]
[357189201,1743876358780,-500.0,0.00018352,2]
[357189202,1743876358803,-500.0,0.00018352,2]
[357189203,1743876358825,-500.0,0.00018352,2]
[357189204,1743876358847,-500.0,0.00018352,2]
[357189205,1743876358868,-500.0,0.00018352,2]
[357189206,1743876358889,-500.0,0.00018352,2]
[357189207,1743876358911,-500.0,0.00018352,2]
[357189208,1743876358932,-500.0,0.00018352,2]
[357189209,1743876358953,-500.0,0.00018352,2]
[357189210,1743876358975,-500.0,0.00018352,2]
[357189211,1743876359001,-500.0,0.00018352,2]
[357189212,1743876359023,-500.0,0.00018352,2]
[357189213,1743876359046,-500.0,0.00018352,2]
[357189214,1743876359071,-270.01055296,0.00018352,2]
[357189253,1743876632644,-300.0,0.00018251,2]
[357189255,1743876632654,-500.0,0.00018252,2]
[357189257,1743876632664,-500.0,0.00018252,2]
[357189259,1743876632673,-500.0,0.00018252,2]
[357189262,1743876632683,-500.0,0.00018252,2]
[357189264,1743876632692,-500.0,0.00018252,2]
[357189265,1743876632702,-500.0,0.00018252,2]
[357189267,1743876632711,-500.0,0.00018252,2]
[357189270,1743876632721,-500.0,0.00018252,2]
[357189272,1743876632730,-500.0,0.00018252,2]
[357189274,1743876632739,-500.0,0.00018252,2]
[357189276,1743876632749,-500.0,0.00018252,2]
[357189278,1743876632759,-500.0,0.00018252,2]
[357189280,1743876632768,-500.0,0.00018252,2]
[357189282,1743876632778,-500.0,0.00018252,2]
[357189284,1743876632787,-500.0,0.00018252,2]
[357189286,1743876632796,-500.0,0.00018252,2]
[357189288,1743876632805,-500.0,0.00018252,2]
[357189290,1743876632815,-500.0,0.00018252,2]
[357189292,1743876632824,-500.0,0.00018252,2]
[357189294,1743876632834,-500.0,0.00018252,2]
[357189296,1743876632843,-500.0,0.00018252,2]
[357189298,1743876632853,-500.0,0.00018252,2]
[357189300,1743876632862,-500.0,0.00018252,2]
[357189302,1743876632871,-500.0,0.00018252,2]
[357189304,1743876632881,-500.0,0.00018252,2]
[357189306,1743876632890,-500.0,0.00018252,2]
[357189308,1743876632900,-1289.97,0.00018252,2]
[357189310,1743876632909,-500.0,0.00018252,2]
[357189312,1743876632918,-11792.62570513,0.00018252,2]
[357189315,1743876632942,-11839.56157092,0.00018252,2]
[357189317,1743876632952,-500.0,0.00018351,2]
[357189319,1743876632962,-500.0,0.00018351,2]
[357189322,1743876632971,-500.0,0.00018351,2]
[357189324,1743876632982,-500.0,0.00018351,2]
[357189325,1743876632992,-500.0,0.00018352,2]
[357189327,1743876633001,-646.61687587,0.00018352,2]
[357189329,1743876633011,-500.0,0.00018352,2]
[357189330,1743876633021,-606.32764582,0.00018352,2]
[357189332,1743876633031,-500.0,0.00018352,2]
[357189334,1743876633040,-338.20678313,0.00018352,2]
[357189336,1743876633050,-500.0,0.00018352,2]
[357189338,1743876633060,-500.0,0.00018352,2]
[357189340,1743876633070,-500.0,0.00018352,2]
[357189342,1743876633082,-500.0,0.00018352,2]
[357189345,1743876633094,-290.4197328,0.00018352,2]
[357189347,1743876633104,-500.0,0.00018352,2]
[357189349,1743876633114,-500.0,0.00018352,2]
[357189351,1743876633124,-500.0,0.00018352,2]
[357189353,1743876633135,-500.0,0.00018352,2]
[357189355,1743876633145,-159.77500182,0.00018352,2]
[357189357,1743876633156,-500.0,0.00018352,2]
[357189358,1743876633167,-500.0,0.00018352,2]
[357189359,1743876633178,-500.0,0.00018352,2]
[357189360,1743876633188,-500.0,0.00018352,2]
[357189361,1743876633199,-500.0,0.00018352,2]
[357189362,1743876633209,-500.0,0.00018352,2]
[357189363,1743876633219,-500.0,0.00018352,2]
[357189364,1743876633230,-500.0,0.00018352,2]
[357189365,1743876633240,-500.0,0.00018352,2]
[357189366,1743876633251,-500.0,0.00018352,2]
[357189367,1743876633261,-637.11610515,0.00018353,2]
[357189368,1743876633271,-500.0,0.00018353,2]
[357189369,1743876633281,-500.0,0.00018353,2]
[357189370,1743876633291,-1540.58405312,0.00018426,2]
[357189371,1743876633300,-500.0,0.00018525,2]
[357189372,1743876633310,-500.0,0.00018525,2]
[357189373,1743876633319,-500.0,0.00018525,2]
[357189374,1743876633328,-500.0,0.00018525,2]
[357189375,1743876633338,-500.0,0.00018525,2]
[357189376,1743876633348,-365.59480295,0.00018525,2]
[357189377,1743876633358,-500.0,0.00018526,2]
[357189378,1743876633368,-500.0,0.00018526,2]
[357189379,1743876633377,-500.0,0.00018526,2]
[357189380,1743876633387,-500.0,0.00018526,2]
[357189381,1743876633396,-500.0,0.00018526,2]
[357189382,1743876633405,-500.0,0.00018526,2]
[357189383,1743876633415,-500.0,0.00018526,2]
[357189384,1743876633424,-500.0,0.00018526,2]
[357189385,1743876633434,-500.0,0.00018526,2]
[357189386,1743876633444,-500.0,0.00018526,2]
[357189387,1743876633454,-500.0,0.00018526,2]
[357189388,1743876633464,-500.0,0.00018526,2]
[357189389,1743876633474,-500.0,0.00018526,2]
[357189390,1743876633483,-500.0,0.00018526,2]
[357189391,1743876633493,-500.0,0.00018526,2]
[357189392,1743876633503,-500.0,0.00018526,2]
[357189393,1743876633513,-500.0,0.00018526,2]
[357189394,1743876633523,-500.0,0.00018526,2]
[357189395,1743876633533,-500.0,0.00018526,2]
[357189396,1743876633543,-500.0,0.00018526,2]
[357189397,1743876633552,-500.0,0.00018526,2]
[357189398,1743876633563,-500.0,0.00018526,2]
[357189399,1743876633573,-500.0,0.00018526,2]
[357189400,1743876633585,-500.0,0.00018526,2]
[357189401,1743876633595,-500.0,0.00018526,2]
[357189402,1743876633604,-500.0,0.00018526,2]
[357189403,1743876633617,-1289.97,0.00018526,2]
[357189404,1743876633627,-500.0,0.00018526,2]
[357189405,1743876633637,-500.0,0.00018625,2]
[357189406,1743876633647,-500.0,0.00018625,2]
[357189407,1743876633657,-500.0,0.00018625,2]
[357189408,1743876633667,-500.0,0.00018625,2]
[357189409,1743876633677,-500.0,0.00018626,2]
[357189410,1743876633687,-500.0,0.00018626,2]
[357189411,1743876633696,-151.46521678,0.00018626,2]
[357189412,1743876633706,-500.0,0.00018626,2]
[357189413,1743876633719,-500.0,0.00018626,2]
[357189414,1743876633729,-500.0,0.00018626,2]
[357189415,1743876633739,-500.0,0.00018626,2]
[357189416,1743876633748,-500.0,0.00018626,2]
[357189417,1743876633758,-500.0,0.00018626,2]
[357189418,1743876633769,-500.0,0.00018626,2]
[357189419,1743876633779,-500.0,0.00018626,2]
[357189420,1743876633788,-500.0,0.00018626,2]
[357189421,1743876633798,-500.0,0.00018626,2]
[357189422,1743876633808,-500.0,0.00018626,2]
[357189423,1743876633818,-500.0,0.00018626,2]
[357189424,1743876633950,-500.0,0.00018626,2]
[357189425,1743876633961,-500.0,0.00018626,2]
[357189426,1743876633970,-500.0,0.00018626,2]
[357189427,1743876633980,-500.0,0.00018626,2]
[357189428,1743876633990,-500.0,0.00018626,2]
[357189429,1743876634000,-500.0,0.00018626,2]
[357189430,1743876634009,-500.0,0.00018626,2]
[357189431,1743876634019,-500.0,0.00018626,2]
[357189432,1743876634029,-500.0,0.00018626,2]
[357189433,1743876634038,-500.0,0.00018626,2]
[357189434,1743876634048,-500.0,0.00018626,2]
[357189435,1743876634057,-258.12498179,0.00018627,2]
[357189436,1743876634066,-500.0,0.00018627,2]